bitfinex/quotes_ETHUSD_20240709
["timestamp","ask_amount","ask_price","bid_price","bid_amount"]
[1720551843130,1.25707189,3063.6,3062.9,3.26479]
[1720551843333,0.55,3063.6,3062.9,3.26479]
[1720551843506,0.55,3063.6,3063.0,3.26475]
[1720551844794,0.55,3063.6,3062.9,6.52961]
[1720551844999,0.40144524,3063.5,3063.0,3.26476]
[1720551845214,0.55,3063.4,3063.0,3.26476]
[1720551845939,0.55,3063.6,3063.0,3.26476]
[1720551846138,1.55691229,3063.6,3063.0,3.26476]
[1720551847214,1.55691229,3063.6,3062.7,3.3788776]
[1720551847432,3.2553828,3063.6,3062.7,3.3788776]
[1720551847734,3.2553828,3063.6,3062.7,6.6439076]
[1720551848035,0.86818352,3063.5,3062.8,3.26495]
[1720551848191,0.55,3063.4,3062.7,0.1138676]
[1720551848395,2.3241,3063.3,3062.7,0.1138676]
[1720551848631,2.512,3063.2,3062.7,0.1138676]
[1720551848832,1.962,3063.0,3062.7,0.1138676]
[1720551849003,0.55,3062.9,3062.7,0.1138676]
[1720551850447,0.55,3063.0,3062.7,0.1138676]
[1720551851100,2.512,3063.0,3062.7,0.1138676]
[1720551852648,0.55,3063.0,3062.7,0.1138676]
[1720551853015,3.0,3063.2,3062.7,0.1138676]
[1720551853211,0.70221901,3063.1,3062.7,0.1138676]
[1720551853535,3.0,3063.3,3062.7,0.1138676]
[1720551854707,0.55,3063.2,3062.7,3.3789376]
[1720551856205,0.55,3063.3,3062.7,3.3789376]
[1720551856428,1.71713431,3063.3,3062.7,3.3789376]
[1720551857134,1.71713431,3063.3,3062.7,0.1138676]
[1720551857452,3.41647737,3063.3,3062.7,0.1138676]
[1720551858542,6.09474306,3063.2,3062.7,0.1138676]
[1720551858700,4.21306461,3063.1,3062.7,0.1138676]
[1720551858899,2.36571107,3063.0,3062.7,0.1138676]
[1720551859132,0.55,3062.9,3062.7,0.1138676]
[1720551860748,0.55,3063.1,3062.7,0.1138676]
[1720551863128,0.55,3063.1,3062.7,3.3788676]
[1720551863544,0.55,3063.2,3062.7,6.6438776]
[1720551865614,2.25233107,3063.3,3062.8,3.26498]
[1720551865808,1.70233107,3063.2,3062.8,3.26498]
[1720551866008,0.55,3063.1,3062.8,3.26498]
[1720551866434,0.55,3063.1,3062.7,3.3789476]
[1720551866610,2.25233107,3063.1,3062.7,3.3789476]
[1720551866806,0.55,3063.1,3062.7,3.3789476]
[1720551867316,2.25233107,3063.1,3062.7,0.1138676]
[1720551867521,2.47756418,3063.1,3062.7,0.1138676]
[1720551868105,1.70233107,3063.0,3062.7,0.1138676]
[1720551868311,0.55,3062.9,3062.7,0.1138676]
[1720551869158,0.55,3063.0,3062.7,0.1138676]
[1720551869323,2.25381696,3063.0,3062.7,0.1138676]
[1720551869511,0.55,3063.0,3062.7,0.1138676]
[1720551870107,2.25381696,3063.0,3062.7,0.1138676]
[1720551871037,1.70381696,3062.9,3062.7,0.1138676]
[1720551871443,0.55,3062.8,3062.7,0.1138676]
[1720551871618,2.25381696,3062.8,3062.7,0.1138676]
[1720551872013,2.2550632,3062.8,3062.7,0.1138676]
[1720551873233,0.55,3062.8,3062.7,0.1138676]
[1720551875924,2.25568213,3062.8,3062.7,0.1138676]
[1720551876335,2.25563827,3062.8,3062.7,0.1138676]
[1720551876726,0.77556383,3062.8,3062.7,0.1138676]
[1720551877620,2.74056383,3062.8,3062.7,0.1138676]
[1720551877745,5.51253967,3062.8,3062.7,0.1138676]
[1720551878455,2.74056383,3062.8,3062.7,0.1138676]
[1720551878631,5.51279746,3062.8,3062.7,0.1138676]
[1720551878971,5.5130367,3062.8,3062.7,0.1138676]
[1720551879569,3.4659363,3062.8,3062.7,0.1138676]
[1720551880575,5.51278141,3062.8,3062.7,0.1138676]
[1720551880757,5.51278394,3062.8,3062.7,0.1138676]
[1720551881745,2.74056383,3062.8,3062.7,0.1138676]
[1720551881943,5.51207379,3062.8,3062.7,0.1138676]
[1720551882693,6.46576742,3062.8,3062.7,0.1138676]
[1720551882899,8.85312486,3062.8,3062.7,0.1138676]
[1720551883191,6.46576742,3062.8,3062.7,0.1138676]
[1720551883398,8.85312486,3062.8,3062.7,0.1138676]
[1720551885046,5.74056383,3062.8,3062.7,0.1138676]
[1720551885249,8.85426881,3062.8,3062.7,0.1138676]
[1720551885871,6.46571218,3062.8,3062.7,0.1138676]
[1720551886251,8.85414445,3062.8,3062.7,0.1138676]
[1720551887746,6.46571218,3062.8,3062.7,0.1138676]
[1720551887947,8.85390359,3062.8,3062.7,0.1138676]
[1720551888444,8.85378843,3062.8,3062.7,0.1138676]
[1720551888746,5.74056383,3062.8,3062.7,0.1138676]
[1720551888983,8.85363089,3062.8,3062.7,0.1138676]
[1720551889590,8.85359569,3062.8,3062.7,0.1138676]
[1720551889990,6.46561647,3062.8,3062.7,0.1138676]
[1720551890783,8.85348454,3062.8,3062.7,0.1138676]
[1720551891584,5.74056383,3062.8,3062.7,0.1138676]
[1720551891917,8.85345006,3062.8,3062.7,0.1138676]
[1720551892120,0.72504118,3062.8,3062.7,0.1138676]
[1720551892293,2.77208175,3062.8,3062.7,0.1138676]
[1720551892732,0.72504118,3062.8,3062.7,0.1138676]
[1720551892888,0.72504118,3062.9,3062.7,0.1138676]
[1720551893792,0.55,3062.8,3062.7,0.1138676]
[1720551894597,2.59814658,3062.8,3062.7,0.1138676]
[1720551894799,3.32318776,3062.8,3062.7,0.1138676]
[1720551894989,1.27527484,3062.8,3062.7,0.1138676]
[1720551895187,0.55,3062.8,3062.7,0.1138676]
[1720551895387,2.59812649,3062.8,3062.7,0.1138676]
[1720551895618,3.32340133,3062.8,3062.7,0.1138676]
[1720551895984,1.7068589,3062.9,3062.7,6.00737336]
[1720551896183,1.7068589,3062.9,3062.8,3.26498]
[1720551896385,1.7068589,3063.0,3062.8,3.26498]
[1720551897007,1.7068589,3063.0,3062.7,5.6694576]
[1720551897008,9.1668589,3063.1,3062.9,3.26487]
[1720551897217,9.1668589,3063.1,3062.9,4.15821276]
[1720551897548,1.7068589,3063.2,3063.1,5.71386]
[1720551898134,1.70638933,3063.2,3063.1,5.71386]
[1720551898290,2.04761734,3063.4,3063.1,2.4492]
[1720551898492,2.77266779,3063.3,3062.8,2.4725]
[1720551898837,1.70614804,3063.0,3062.7,0.1138676]
[1720551899136,2.25614804,3062.9,3062.7,0.1138676]
[1720551899910,1.70614804,3062.8,3062.7,0.1138676]
[1720551900110,0.55,3062.8,3062.7,0.1138676]
[1720551900542,2.25614804,3062.8,3062.7,0.1138676]
[1720551900707,0.55,3062.8,3062.7,0.1138676]
[1720551900904,0.55,3062.9,3062.7,0.1138676]
[1720551901238,1.7059318,3062.8,3062.7,0.1138676]
[1720551901525,2.2559318,3062.8,3062.7,0.1138676]
[1720551901732,2.25589408,3062.8,3062.7,0.1138676]
[1720551904148,1.70587479,3063.0,3062.8,3.26488]
[1720551904304,4.35322471,3063.6,3062.8,3.26488]
[1720551904305,1.70587479,3063.1,3062.8,3.26488]
[1720551905028,1.70587479,3063.1,3062.9,3.26487]
[1720551905534,0.55,3063.0,3062.9,3.26487]
[1720551905897,0.55,3063.0,3062.9,6.29535276]
[1720551906163,1.965,3063.9,3062.9,3.03048276]
[1720551906164,1.70587479,3063.3,3062.9,3.03048276]
[1720551906305,1.70587479,3063.3,3063.0,3.26473]
[1720551906648,7.35322471,3063.9,3063.0,3.26473]
[1720551906649,1.70587479,3063.2,3063.0,3.26473]
[1720551906832,1.70587479,3063.2,3062.7,3.3789576]
[1720551907156,1.70587479,3063.1,3062.7,3.3789576]
[1720551907313,0.55,3063.0,3062.7,3.3789576]
[1720551907517,2.25477183,3063.0,3062.7,3.3789576]
[1720551907825,0.55,3063.0,3062.8,3.26493]
[1720551908030,0.55,3063.0,3062.8,3.26498]
[1720551911476,0.55,3063.1,3062.9,3.26486]
[1720551911676,0.55,3063.1,3063.0,3.26477]
[1720551912177,0.55,3063.3,3063.1,3.26465]
[1720551912630,0.55,3063.3,3062.9,3.26486]
[1720551912631,2.2537089,3063.3,3062.9,3.26478]
[1720551912835,2.2537089,3063.3,3062.7,3.3788576]
[1720551913049,1.7037089,3063.2,3062.7,0.1138676]
[1720551913252,2.2537089,3063.1,3062.7,0.1138676]
[1720551913575,0.55,3063.0,3062.7,3.3788976]
[1720551914271,0.55,3063.0,3062.7,6.6439176]
[1720551914632,0.55,3063.1,3062.7,3.3788876]
[1720551915055,2.25369772,3063.1,3062.7,3.3788876]
[1720551915565,0.55,3063.1,3062.7,3.3788876]
[1720551915957,2.25369772,3063.1,3062.7,3.3788876]
[1720551916357,0.55,3063.1,3062.7,3.3788876]
[1720551916671,0.55,3063.1,3062.8,3.26496]
[1720551917384,2.25314144,3063.2,3062.8,3.26496]
[1720551917545,0.55,3063.2,3062.8,3.26496]
[1720551917747,2.25315142,3063.2,3062.8,3.26496]
[1720551918263,2.25324382,3063.2,3062.8,3.26496]
[1720551918974,2.25324382,3063.2,3063.1,1.172]
[1720551919275,0.55,3063.2,3063.1,4.43666]
[1720551919569,0.55,3063.3,3063.1,4.43666]
[1720551919770,1.70324382,3063.5,3063.1,2.16994]
[1720551919973,1.70324382,3063.6,3063.4,6.52853]
[1720551920278,1.70324382,3063.9,3063.7,3.26402]
[1720551920433,1.70296521,3064.0,3063.8,1.172]
[1720551920633,2.4886,3064.5,3063.8,4.43591]
[1720551920634,1.70296521,3064.1,3063.8,4.43591]
[1720551920973,1.172,3064.8,3063.7,3.26396]
[1720551920974,1.70296521,3064.3,3064.0,1.172]
[1720551921329,1.965,3064.7,3064.0,1.172]
[1720551921330,1.70296521,3064.4,3064.0,1.172]
[1720551921533,1.87326173,3064.4,3064.0,1.172]
[1720551921972,1.87256812,3064.4,3064.0,1.172]
[1720551922487,0.17029652,3064.4,3064.0,1.172]
[1720551922778,0.17029652,3064.4,3063.9,6.52755]
[1720551922978,0.17029652,3064.4,3063.9,3.26375]
[1720551923139,0.55,3064.3,3063.9,3.26375]
[1720551923764,0.55,3064.3,3063.9,6.52749]
[1720551923935,0.55,3064.3,3064.0,3.26368]
[1720551924154,0.55,3064.4,3064.1,3.26349]
[1720551924366,1.965,3064.9,3064.1,6.52698]
[1720551924367,1.70078714,3064.8,3064.1,6.52698]
[1720551924531,0.40059446,3064.8,3064.4,3.26326]
[1720551924737,6.25767673,3065.7,3064.4,3.26318]
[1720551924738,1.70078714,3065.0,3064.4,3.26318]
[1720551924986,1.70078714,3065.0,3064.0,2.321]
[1720551924987,0.17007871,3064.9,3064.5,3.26312]
[1720551925132,1.70078714,3065.1,3064.7,3.26293]
[1720551925339,4.2324,3065.5,3064.7,3.26293]
[1720551925340,0.17007871,3065.0,3064.7,3.26293]
[1720551925645,1.70078714,3065.3,3064.7,3.26293]
[1720551925850,1.70078714,3065.2,3064.5,6.52619]
[1720551926049,3.0,3065.4,3064.5,6.52619]
[1720551926050,0.17007871,3065.1,3064.7,3.26294]
[1720551926472,1.70078714,3065.3,3064.7,3.26294]
[1720551926672,1.70078714,3065.3,3064.5,3.26307]
[1720551927078,0.55,3065.2,3064.5,3.26307]
[1720551927275,0.355,3065.2,3064.5,3.26307]
[1720551927495,0.55,3065.1,3064.6,3.26306]
[1720551928050,0.55,3065.1,3064.5,3.26307]
[1720551928250,0.55,3065.1,3064.5,6.52617]
[1720551928497,0.55,3065.1,3064.0,2.321]
[1720551928660,0.287,3065.0,3064.2,3.26346]
[1720551928866,0.55,3064.9,3064.2,3.26342]
[1720551929251,3.0407,3064.9,3064.0,5.58461]
[1720551929455,3.56997,3064.9,3064.2,3.26348]
[1720551931804,1.965,3064.8,3063.9,3.0]
[1720551931953,1.965,3064.6,3063.6,2.494]
[1720551932153,1.965,3064.6,3063.3,2.494]
[1720551932154,1.965,3064.4,3063.3,2.494]
[1720551932384,1.965,3064.2,3063.1,3.26456]
[1720551932592,0.55,3064.1,3063.7,3.26401]
[1720551932794,3.0,3064.4,3063.7,3.26401]
[1720551932994,1.33363,3064.3,3063.7,3.26401]
[1720551933857,1.33363,3064.3,3063.6,3.26413]
[1720551934103,1.33363,3064.3,3063.5,5.75818]
[1720551934400,1.965,3064.1,3062.9,3.26482]
[1720551934569,1.965,3063.9,3062.7,6.1899476]
[1720551934902,1.965,3063.9,3062.8,3.26497]
[1720551935050,1.965,3063.7,3062.8,3.26497]
[1720551935562,0.55,3063.6,3062.8,3.26497]
[1720551935977,2.515,3063.6,3062.8,3.26497]
[1720551936182,0.2515,3063.5,3062.8,3.26497]
[1720551936501,0.55,3063.4,3062.8,3.26497]
[1720551937066,0.55,3063.5,3062.8,3.26497]
[1720551937522,0.55,3063.5,3063.0,3.26475]
[1720551937799,0.55,3063.5,3063.0,3.917715]
[1720551938162,0.55,3063.6,3063.2,3.26454]
[1720551938365,3.0,3063.8,3063.0,3.917715]
[1720551938366,0.55,3063.7,3063.0,3.26469]
[1720551938550,0.355,3063.7,3063.0,3.26469]
[1720551938749,0.55,3063.6,3063.0,3.26469]
[1720551939496,0.55,3063.6,3063.0,6.52938]
[1720551939865,0.55,3063.6,3063.0,3.26469]
[1720551940617,0.55,3063.6,3062.9,3.26487]
[1720551940916,0.55,3063.6,3062.9,3.26485]
[1720551941070,0.837,3063.6,3062.9,3.26485]
[1720551941867,0.837,3063.6,3062.8,3.26491]
[1720551941868,2.802,3063.6,3062.8,6.52982]
[1720551942071,0.837,3063.6,3062.8,3.26491]
[1720551942271,1.965,3063.8,3062.8,3.26491]
[1720551942272,1.69461961,3063.8,3063.4,3.26434]
[1720551942574,1.69461961,3064.3,3063.6,3.26403]
[1720551942809,2.3133,3064.4,3063.6,3.26403]
[1720551942810,1.69461961,3064.4,3063.7,3.26402]
[1720551943103,4.03243593,3064.4,3063.7,3.26402]
[1720551943306,1.69461961,3064.3,3063.7,3.26402]
[1720551943506,1.6949868,3064.3,3063.7,3.26402]
[1720551943887,0.55,3064.2,3063.7,3.26402]
[1720551944210,5.2449868,3064.3,3063.7,3.26402]
[1720551944770,1.6949868,3064.4,3063.7,3.590422]
[1720551945016,1.6949868,3064.6,3063.7,0.326402]
[1720551945317,1.6949868,3064.9,3064.3,3.26338]
[1720551945467,1.6949868,3065.1,3064.3,3.26338]
[1720551945672,0.41533868,3065.0,3064.3,3.26338]
[1720551946714,3.41533868,3065.0,3064.3,3.26338]
[1720551947087,3.0,3065.0,3064.3,3.26338]
[1720551947394,4.69480467,3065.3,3064.7,3.26293]
[1720551947567,3.0,3065.2,3064.7,3.26293]
[1720551947775,0.46948047,3065.1,3064.7,3.26293]
[1720551948209,1.965,3065.5,3064.7,3.26293]
[1720551948210,1.69480467,3065.2,3064.7,3.26287]
[1720551948413,1.69480467,3065.6,3065.1,3.26252]
[1720551948711,1.69480467,3065.7,3065.1,3.26252]
[1720551949127,1.69480467,3065.7,3064.9,3.26266]
[1720551949303,1.965,3065.6,3064.9,3.26266]
[1720551949507,0.36598047,3065.5,3064.9,3.26266]
[1720551950536,0.55,3065.4,3064.7,3.2629]
[1720551950892,0.55,3065.4,3064.7,6.52579]
[1720551951092,1.00749114,3065.4,3064.8,3.26283]
[1720551951734,1.00749114,3065.4,3064.8,3.26279]
[1720551952108,1.00749114,3065.4,3064.8,6.52558]
[1720551952546,1.00749114,3065.4,3064.9,3.26273]
[1720551953098,1.00749114,3065.4,3064.8,3.26279]
[1720551953099,1.00749114,3065.4,3064.8,3.26275]
[1720551953536,1.00749114,3065.4,3064.9,3.26274]
[1720551953744,0.55,3065.4,3064.9,3.26274]
[1720551954038,0.55,3065.5,3064.9,3.26274]
[1720551954204,0.55,3065.5,3064.7,3.26289]
[1720551954407,0.5515,3065.4,3064.7,3.26289]
[1720551954604,0.55,3065.3,3064.7,3.26289]
[1720551955241,0.55,3065.3,3064.6,3.263]
[1720551955451,0.55,3065.3,3064.5,2.3416]
[1720551955618,0.55,3065.3,3064.5,5.60472]
[1720551955952,0.55,3065.3,3064.8,3.26281]
[1720551956243,0.55,3065.5,3064.8,3.26281]
[1720551956457,0.55,3065.5,3064.7,2.811]
[1720551956665,0.55,3065.5,3064.6,3.26297]
[1720551956666,5.515,3065.6,3064.6,3.26297]
[1720551956820,5.515,3065.6,3064.7,3.26295]
[1720551958229,5.515,3065.6,3064.8,3.26282]
[1720551958754,5.515,3065.6,3064.6,6.52594]
[1720551959069,5.515,3065.6,3064.7,3.26287]
[1720551959222,0.5515,3065.5,3064.7,3.26287]
[1720551959423,0.55,3065.4,3064.8,3.26284]
[1720551959625,0.55,3065.4,3064.6,3.26297]
[1720551960328,1.965,3065.2,3064.3,2.811]
[1720551960533,2.9442,3065.1,3064.1,3.26349]
[1720551960733,2.9442,3065.1,3064.0,5.67753]
[1720551960734,2.515,3065.1,3064.0,5.67753]
[1720551960952,2.515,3065.1,3064.4,3.2632]
[1720551961161,3.0,3065.0,3064.4,3.2632]
[1720551961457,0.55,3064.9,3064.4,3.2632]
[1720551962062,0.55,3065.0,3064.4,3.2632]
[1720551962272,7.46,3065.3,3064.8,3.26278]
[1720551962431,7.46,3065.3,3065.0,3.26263]
[1720551962639,1.965,3065.6,3065.0,6.52521]
[1720551963769,0.55,3065.5,3065.0,6.52521]
[1720551963919,3.55,3065.5,3065.0,6.52521]
[1720551964325,3.55,3065.5,3065.0,3.26258]
[1720551964639,3.9091734,3065.5,3065.0,3.26258]
[1720551965562,3.9091734,3065.5,3064.8,6.52557]
[1720551965869,3.9091734,3065.5,3065.0,3.26263]
[1720551966829,3.55,3065.5,3065.0,6.52518]
[1720551967028,0.55,3065.5,3065.1,3.26252]
[1720551968079,0.55,3065.5,3064.8,3.26278]
[1720551968246,0.55,3065.5,3065.0,3.26256]
[1720551968447,0.55,3065.5,3065.0,6.52511]
[1720551969175,0.55,3065.5,3065.1,3.26252]
[1720551970737,7.46,3065.7,3065.3,3.2623]
[1720551971132,19.66,3066.1,3065.3,2.3853]
[1720551971364,7.46,3066.1,3065.4,0.06523519]
[1720551971586,7.46,3066.1,3065.7,3.26189]
[1720551971765,8.44903,3066.1,3065.7,3.26189]
[1720551972274,8.44903,3066.1,3065.6,3.26197]
[1720551972435,3.0,3066.0,3065.6,3.26197]
[1720551972637,3.0,3066.0,3065.7,3.26189]
[1720551973050,0.55,3065.9,3065.7,3.26189]
[1720551973274,7.46,3066.1,3065.9,6.52322]
[1720551974354,7.46,3066.1,3066.0,3.26157]
[1720551974697,3.0,3066.5,3066.0,3.26157]
[1720551974984,7.46,3066.6,3066.1,3.26144]
[1720551975194,9.425,3066.9,3065.9,5.1438]
[1720551975402,7.46,3066.9,3066.3,2.811]
[1720551975551,7.46,3066.9,3066.6,3.26093]
[1720551975753,2.357,3067.4,3066.3,6.07215]
[1720551975754,9.425,3067.3,3066.3,6.07215]
[1720551976059,9.425,3067.3,3066.1,3.26147]
[1720551976283,1.965,3067.1,3066.1,3.26147]
[1720551976482,1.965,3067.1,3066.2,3.26127]
[1720551976694,1.965,3067.1,3066.0,3.26157]
[1720551976856,4.7993,3067.0,3065.9,2.811]
[1720551977052,1.965,3066.8,3065.8,3.26177]
[1720551977284,1.965,3066.8,3065.9,3.26168]
[1720551977487,3.0115,3066.7,3065.9,3.26168]
[1720551977658,3.0,3066.6,3065.9,3.26158]
[1720551977990,3.0,3066.6,3065.7,3.26182]
[1720551977991,2.2843,3066.4,3065.7,3.26182]
[1720551978197,0.55,3066.3,3065.7,3.26182]
[1720551978399,0.55,3066.3,3065.8,3.26169]
[1720551979052,0.55,3066.3,3065.5,2.811]
[1720551979259,0.28343,3066.2,3065.5,6.07304]
[1720551979479,0.55,3066.1,3065.5,6.07304]
[1720551979688,0.55,3066.1,3065.9,6.07259]
[1720551979855,0.55,3066.2,3066.0,0.607259]
[1720551980056,0.55,3066.5,3065.9,8.56399]
[1720551980258,0.55,3066.5,3066.0,0.856399]
[1720551980569,0.55,3066.5,3065.9,6.07259]
[1720551981600,0.55,3066.5,3065.6,2.4914]
[1720551981754,0.55,3066.5,3065.6,5.75334]
[1720551981954,1.965,3066.4,3065.6,5.75338]
[1720551982188,0.55,3066.3,3065.6,5.75338]
[1720551983297,0.55,3066.3,3065.7,3.26186]
[1720551983590,7.46,3066.6,3065.9,2.811]
[1720551983794,7.46,3066.6,3066.1,3.26137]
[1720551984002,7.46,3066.6,3066.3,3.26119]
[1720551984294,7.46,3066.6,3066.3,6.52238]
[1720551984464,7.46,3066.6,3066.3,9.33338]
[1720551985074,7.46,3066.6,3066.3,7.239248]
[1720551985369,7.46,3066.6,3066.5,3.26104]
[1720551985571,7.46,3067.1,3066.3,6.07219]
[1720551985876,7.46,3067.1,3066.5,3.26102]
[1720551986084,3.0,3067.0,3066.5,3.26102]
[1720551986268,3.0,3067.0,3066.5,3.26098]
[1720551986590,0.55,3066.9,3066.5,6.52196]
[1720551986896,0.55,3066.9,3066.5,3.26098]
[1720551987069,0.55,3066.9,3066.5,6.52195]
[1720551987268,0.55,3066.9,3066.6,2.3922]
[1720551987601,0.55,3066.9,3066.6,5.65313]
[1720551988097,0.55,3066.9,3066.6,3.26093]
[1720551988995,0.55,3066.9,3066.4,6.52219]
[1720551989193,0.55,3066.9,3066.5,3.26102]
[1720551990291,0.55,3066.9,3066.6,3.26093]
[1720551990663,0.55,3066.9,3066.4,3.26106]
[1720551991290,0.55,3066.9,3066.5,3.26104]
[1720551991692,0.55,3066.9,3066.5,3.26094]
[1720551991998,0.55,3067.0,3066.6,3.26093]
[1720551993405,0.55,3067.0,3066.5,3.26094]
[1720551994586,0.55,3067.0,3066.6,3.26093]
[1720551995801,3.55,3067.3,3066.6,3.26093]
[1720551996105,6.2572,3067.3,3066.6,3.26093]
[1720551997701,6.2572,3067.3,3066.6,6.5218]
[1720551998199,6.2572,3067.3,3066.7,3.26081]
[1720551999166,3.55,3067.3,3066.7,3.26081]
[1720551999912,0.55,3067.3,3066.9,3.26058]
[1720552000203,0.55,3067.3,3066.9,6.52111]
[1720552000569,0.55,3067.3,3067.0,3.26051]
[1720552002946,0.55,3067.3,3066.8,3.26072]
[1720552002947,7.46,3067.4,3066.8,2.3341]
[1720552003096,7.46,3067.4,3067.2,3.26024]
[1720552003832,7.46,3067.4,3067.0,3.26043]
[1720552003833,7.46,3067.4,3067.1,3.26039]
[1720552004497,0.55,3067.3,3067.1,3.26039]
[1720552004722,0.55,3067.3,3067.2,3.2603]
[1720552005333,0.55,3067.3,3067.1,2.811]
[1720552005516,0.55,3067.3,3066.7,6.07183]
[1720552005718,0.55,3067.3,3066.9,3.26061]
[1720552006099,0.55,3067.3,3066.9,3.26054]
[1720552006332,0.55,3067.3,3067.0,3.2605]
[1720552007631,0.55,3067.3,3067.2,3.2603]
[1720552008131,0.55,3067.3,3067.0,8.88264]
[1720552008336,0.55,3067.3,3067.2,3.2603]
[1720552008703,0.55,3067.3,3067.1,6.959664]
[1720552009033,0.55,3067.3,3066.9,3.26054]
[1720552009619,0.55,3067.4,3067.0,3.2605]
[1720552010315,0.55,3067.4,3066.8,3.26065]
[1720552010521,0.55,3067.4,3066.5,3.26096]
[1720552010522,2.8192,3067.4,3066.5,3.26096]
[1720552010717,2.8192,3067.4,3066.3,5.63369]
[1720552010941,2.49612,3067.3,3066.2,2.811]
[1720552011245,4.1878429,3067.3,3066.3,3.26124]
[1720552011463,4.3559,3067.1,3066.2,6.07236]
[1720552011614,0.55,3067.0,3066.2,6.07236]
[1720552012552,0.55,3067.0,3066.3,3.26125]
[1720552014218,0.55,3067.0,3066.2,2.811]
[1720552014420,0.65989062,3066.9,3066.2,6.07236]
[1720552014720,0.55,3066.8,3066.2,2.811]
[1720552015536,2.515,3066.8,3066.2,2.811]
[1720552015734,0.48678968,3066.7,3065.9,3.26165]
[1720552015903,0.55,3066.6,3065.9,3.26165]
[1720552016106,2.4406,3066.4,3065.3,2.3471]
[1720552016355,2.4406,3066.4,3065.6,3.262]
[1720552016356,1.69578427,3066.2,3065.6,3.262]
[1720552016509,0.55,3066.1,3065.6,3.262]
[1720552017437,0.55,3066.1,3065.7,3.26184]
[1720552017640,0.55,3066.1,3065.8,3.587954]
[1720552017818,0.55,3066.2,3065.8,3.587954]
[1720552018018,0.55,3066.2,3065.8,3.26177]
[1720552018314,2.24578427,3066.2,3065.8,3.26177]
[1720552018731,2.24578427,3066.2,3065.8,6.07277]
[1720552018933,0.55,3066.2,3065.8,6.07277]
[1720552019152,0.55,3066.2,3065.8,7.006231]
[1720552019308,1.69710231,3066.3,3065.8,7.006231]
[1720552019512,0.55,3066.2,3065.8,6.07277]
[1720552020153,0.55,3066.2,3065.9,3.26166]
[1720552020487,0.55,3066.2,3065.9,5.60876]
[1720552022247,0.55,3066.2,3065.9,5.6087]
[1720552022616,0.55,3066.2,3066.1,3.26147]
[1720552023143,0.55,3066.3,3066.1,3.26147]
[1720552023312,9.15757666,3066.6,3066.3,3.26119]
[1720552023518,7.46,3066.6,3066.5,3.26104]
[1720552023944,7.46,3066.6,3066.4,3.26115]
[1720552024840,7.46,3066.6,3066.2,6.5226]
[1720552025047,7.46,3066.6,3066.2,3.26127]
[1720552025352,0.55,3066.5,3066.2,3.26127]
[1720552025914,0.55,3066.6,3066.4,3.26115]
[1720552026145,2.24856903,3066.6,3066.2,0.48768093]
[1720552026346,1.69856903,3066.5,3066.2,3.74904093]
[1720552026518,0.55,3066.4,3066.2,3.74904093]
[1720552026852,0.55,3066.4,3066.3,3.26125]
[1720552027029,0.55,3066.5,3066.4,3.26113]
[1720552027553,0.55,3066.5,3066.4,6.52228]
[1720552027727,0.55,3066.7,3066.5,3.26097]
[1720552028346,0.55,3066.7,3066.5,3.98984985]
[1720552028552,2.24965838,3066.8,3066.5,3.98984985]
[1720552028751,0.55,3066.8,3066.6,3.26093]
[1720552029052,0.55,3066.8,3066.7,3.65981099]
[1720552029270,1.69982024,3067.0,3066.8,3.26071]
[1720552029421,0.55,3066.9,3066.8,3.26071]
[1720552029621,1.69997103,3067.0,3066.8,3.26071]
[1720552029622,1.69997103,3067.0,3066.8,3.26062]
[1720552030030,1.69997103,3067.1,3066.8,3.26062]
[1720552030234,1.69997103,3067.1,3066.8,6.52129]
[1720552030429,1.69997103,3067.1,3066.8,3.26062]
[1720552030636,1.69997103,3067.0,3066.6,3.26087]
[1720552030831,1.69997103,3066.9,3066.1,3.26147]
[1720552031050,1.69997103,3066.7,3066.1,3.26147]
[1720552031231,0.55,3066.6,3066.1,3.26147]
[1720552031439,1.69997103,3066.5,3066.1,3.26147]
[1720552031659,0.55,3066.4,3066.1,3.26147]
[1720552031821,1.69983541,3066.5,3066.1,6.52288]
[1720552032029,0.55,3066.4,3066.1,3.26141]
[1720552033182,0.55,3066.4,3065.9,5.63011]
[1720552033467,2.24983541,3066.4,3065.7,3.26185]
[1720552033689,1.69983541,3066.2,3065.6,2.811]
[1720552033963,1.69983541,3066.1,3065.6,2.811]
[1720552034272,2.24983541,3066.1,3065.6,6.07293]
[1720552034427,2.24983541,3066.1,3065.6,6.680234]
[1720552034636,0.55,3066.1,3065.6,3.418304]
[1720552034854,0.55,3066.1,3066.0,3.26157]
[1720552035167,1.70023874,3066.6,3066.4,3.26114]
[1720552035463,9.16023874,3066.7,3066.5,0.326114]
[1720552035650,7.46,3066.7,3066.2,3.26136]
[1720552035852,1.70023874,3066.6,3066.2,3.26136]
[1720552036331,0.55,3066.5,3066.2,3.26136]
[1720552036663,2.25023874,3066.5,3066.2,3.26136]
[1720552037162,0.55,3066.5,3066.2,3.26136]
[1720552037343,2.25023874,3066.5,3066.2,3.26136]
[1720552038244,0.55,3066.5,3066.0,2.811]
[1720552038439,3.22071751,3066.5,3065.8,3.26172]
[1720552038624,1.69950531,3066.4,3065.8,3.26172]
[1720552038849,0.55,3066.3,3065.8,3.26172]
[1720552039167,0.55,3066.3,3066.0,3.26157]
[1720552039399,0.55,3066.4,3066.0,6.07257]
[1720552040564,0.55,3066.4,3066.0,9.33407]